fUSD/lending_fUSD_20250101
["ID","MTS","AMOUNT","RATE_DAILY","PERIOD"]
[347338092,1735704639839,-629.78,0.00011052,2]
[347338093,1735704639849,-1642.7,0.00011052,2]
[347338094,1735704639858,-849.32,0.00011052,2]
[347338095,1735704639868,-1292.11,0.00011052,2]
[347338096,1735704639877,-500.0,0.00011052,2]
[347338097,1735704639886,-1180.79,0.00011052,2]
[347338098,1735704639895,-840.75,0.00011052,2]
[347338099,1735704639905,-500.0,0.00011052,2]
[347338100,1735704639915,-500.0,0.00011052,2]
[347338101,1735704639924,-500.0,0.00011052,2]
[347338102,1735704639933,-500.0,0.00011052,2]
[347338103,1735704639943,-500.0,0.00011052,2]
[347338104,1735704639952,-783.71,0.00011052,2]
[347338105,1735704639961,-500.0,0.00011052,2]
[347338106,1735704639971,-1894.96,0.00011052,2]
[347338107,1735704639980,-500.0,0.00011052,2]
[347338108,1735704639990,-500.0,0.00011052,2]
[347338109,1735704639999,-914.63,0.00011052,2]
[347338110,1735704640009,-1043.62,0.00011052,2]
[347338111,1735704640018,-598.64,0.00011052,2]
[347338112,1735704640027,-500.0,0.00011052,2]
[347338113,1735704640036,-739.56,0.00011052,2]
[347338114,1735704640046,-1973.41,0.00011052,2]
[347338115,1735704640055,-759.8,0.00011052,2]
[347338116,1735704640065,-500.0,0.00011052,2]
[347338117,1735704640075,-1255.88,0.00011052,2]
[347338118,1735704640084,-500.0,0.00011052,2]
[347338119,1735704640095,-4231.2,0.00011052,2]
[347338120,1735704640105,-552.3,0.00011052,2]
[347338121,1735704640115,-982.45,0.00011052,2]
[347338122,1735704640124,-533.97,0.00011052,2]
[347338123,1735704640133,-500.0,0.00011052,2]
[347338124,1735704640143,-1671.82,0.00011052,2]
[347338125,1735704640152,-542.47140655,0.00011052,2]
[347338126,1735704640162,-500.0,0.00011052,2]
[347338127,1735704640171,-1181.52,0.00011052,2]
[347338128,1735704640181,-500.0,0.00011052,2]
[347338129,1735704640190,-921.58,0.00011052,2]
[347338131,1735704640200,-389.81314807,0.00011052,2]
[347338133,1735704640209,-2389.01,0.00011052,2]
[347338134,1735704640218,-500.0,0.00011052,2]
[347338135,1735704640228,-2348.67,0.00011052,2]
[347338136,1735704640238,-500.0,0.00011052,2]
[347338137,1735704640248,-769.55,0.00011052,2]
[347338138,1735704640257,-827.98,0.00011052,2]
[347338139,1735704640269,-890.88,0.00011052,2]
[347338140,1735704640279,-2259.9,0.00011052,2]
[347338141,1735704640288,-500.0,0.00011052,2]
[347338142,1735704640297,-4191.3,0.00011052,2]
[347338143,1735704640307,-1079.48,0.00011052,2]
[347338144,1735704640318,-500.0,0.00011052,2]
[347338145,1735704640327,-1336.5,0.00011052,2]
[347338146,1735704640337,-1881.62,0.00011052,2]
[347338147,1735704640347,-1717.8,0.00011052,2]
[347338148,1735704640356,-2272.29,0.00011052,2]
[347338149,1735704640366,-500.0,0.00011052,2]
[347338150,1735704640375,-780.96,0.00011052,2]
[347338151,1735704640385,-500.0,0.00011052,2]
[347338152,1735704640394,-500.0,0.00011052,2]
[347338153,1735704640403,-2001.03,0.00011052,2]
[347338154,1735704640412,-500.0,0.00011052,2]
[347338155,1735704640421,-187.45000518,0.00011052,2]
[347338156,1735704640431,-4220.75,0.00011052,2]
[347338157,1735704640440,-500.0,0.00011052,2]
[347338158,1735704640450,-734.8,0.00011052,2]
[347338159,1735704640459,-834.31813418,0.00011052,2]
[347338160,1735704640478,-312.49855706,0.00011052,2]
[347338161,1735704640564,-96.22330876,0.00011052,2]
[347338162,1735704640574,-500.0,0.00011052,2]
[347338163,1735704640584,-500.0,0.00011052,2]
[347338164,1735704640595,-500.0,0.00011052,2]
[347338165,1735704640605,-2380.92,0.00011052,2]
[347338166,1735704640615,-524.07,0.00011052,2]
[347338167,1735704640627,-1580.96,0.00011052,2]
[347338168,1735704640639,-500.0,0.00011052,2]
[347338169,1735704640648,-3178.82,0.00011052,2]
[347338170,1735704640658,-540.31,0.00011052,2]
[347338171,1735704640668,-500.0,0.00011052,2]
[347338172,1735704640677,-500.0,0.00011052,2]
[347338173,1735704640686,-500.0,0.00011052,2]
[347338174,1735704640695,-500.0,0.00011052,2]
[347338175,1735704640704,-1278.94,0.00011052,2]
[347338176,1735704640714,-884.62,0.00011052,2]
[347338177,1735704640723,-761.26,0.00011052,2]
[347338178,1735704640733,-500.0,0.00011052,2]
[347338179,1735704640742,-506.45,0.00011052,2]
[347338180,1735704640751,-1372.65,0.00011052,2]
[347338181,1735704640760,-579.02852397,0.00011052,2]
[347338182,1735704640769,-500.0,0.00011052,2]
[347338183,1735704640778,-1088.5,0.00011052,2]
[347338184,1735704640788,-500.0,0.00011052,2]
[347338185,1735704640797,-839.82,0.00011052,2]
[347338186,1735704640806,-2144.0,0.00011052,2]
[347338187,1735704640815,-1301.8,0.00011052,2]
[347338188,1735704640825,-500.0,0.00011052,2]
[347338189,1735704640835,-888.81,0.00011052,2]
[347338190,1735704640845,-1063.83,0.00011052,2]
[347338191,1735704640855,-793.13,0.00011052,2]
[347338192,1735704640864,-894.51,0.00011052,2]
[347338193,1735704640873,-500.0,0.00011052,2]
[347338194,1735704640882,-277.56495626,0.00011052,2]
[347338195,1735704640892,-1056.56,0.00011052,2]
[347338196,1735704640901,-1267.18,0.00011052,2]
[347338197,1735704640910,-736.73,0.00011052,2]
[347338198,1735704640920,-500.0,0.00011052,2]
[347338199,1735704640929,-500.0,0.00011052,2]
[347338200,1735704640939,-4349.07,0.00011052,2]
[347338201,1735704640948,-895.2,0.00011052,2]
[347338202,1735704640958,-1044.44,0.00011052,2]
[347338203,1735704640967,-590.02,0.00011052,2]
[347338204,1735704640976,-22.85725892,0.00011052,2]
[347338205,1735704640988,-2200.80274108,0.00011052,2]
[347338206,1735704640998,-500.0,0.00011052,2]
[347338207,1735704641007,-443.03968239,0.00011052,2]
[347338208,1735704641019,-1161.4798076,0.00011052,2]
[347338209,1735704641486,-102.92051001,0.00011052,2]
[347338210,1735704641495,-2514.83,0.00011052,2]
[347338211,1735704641505,-1266.69,0.00011052,2]
[347338212,1735704641514,-1035.43,0.00011052,2]
[347338213,1735704641524,-1554.46,0.00011052,2]
[347338214,1735704641533,-4862.50520535,0.00011052,2]
[347338215,1735704641545,-991.36350105,0.00011052,2]
[347338216,1735704641569,-332.0700039,0.00011052,2]
[347338217,1735704641580,-362.1912897,0.00011052,2]
[347338218,1735704641589,-33.2807103,0.00011052,2]
[347338219,1735704641601,-499.1992897,0.00011052,2]
[347338220,1735704641611,-442.02455345,0.00011052,2]
[347338221,1735704641621,-500.0,0.00011052,2]
[347338222,1735704641630,-712.33,0.00011052,2]
[347338223,1735704641641,-500.0,0.00011052,2]
[347338224,1735704641651,-2802.98,0.00011052,2]
[347338225,1735704641661,-205.51459482,0.00011052,2]
[347338226,1735704641697,-2230.14540518,0.00011052,2]
[347338227,1735704641707,-500.0,0.00011052,2]
[347338228,1735704641716,-2989.88,0.00011052,2]
[347338229,1735704641726,-500.0,0.00011052,2]
[347338230,1735704641735,-1521.36,0.00011052,2]
[347338231,1735704641745,-586.52,0.00011052,2]
[347338232,1735704641756,-2056.42,0.00011052,2]
[347338233,1735704641765,-725.32,0.00011052,2]
[347338234,1735704641775,-500.0,0.00011052,2]
[347338235,1735704641785,-2014.1,0.00011052,2]
[347338236,1735704641794,-799.71,0.00011052,2]
[347338237,1735704641804,-3535.32,0.00011052,2]
[347338238,1735704641814,-500.0,0.00011052,2]
[347338239,1735704641823,-695.52,0.00011052,2]
[347338240,1735704641833,-500.0,0.00011052,2]
[347338241,1735704641843,-500.0,0.00011052,2]
[347338242,1735704641853,-700.33,0.00011052,2]
[347338243,1735704641863,-1418.24,0.00011052,2]
[347338244,1735704641873,-500.0,0.00011052,2]
[347338245,1735704641883,-1798.66073382,0.00011052,2]
[347338246,1735704641895,-264.339999,0.00011052,2]
[347338247,1735704641914,-305.0000025,0.00011052,2]
[347338248,1735704641925,-224.58926468,0.00011052,2]
[347338249,1735704641935,-423.51624126,0.00011052,2]
[347338250,1735704641953,-76.48375874,0.00011052,2]
[347338251,1735704641964,-500.0,0.00011052,2]
[347338252,1735704641973,-1093.06,0.00011052,2]
[347338253,1735704641982,-314.08820532,0.00011052,2]
[347338254,1735704641994,-185.91179468,0.00011052,2]
[347338255,1735704642004,-1697.47,0.00011052,2]
[347338256,1735704642013,-2461.88,0.00011052,2]
[347338257,1735704642023,-500.0,0.00011052,2]
[347338258,1735704642032,-120.28820532,0.00011052,2]
[347338259,1735704642054,-4577.93179468,0.00011052,2]
[347338260,1735704642063,-500.0,0.00011052,2]
[347338261,1735704642072,-500.0,0.00011052,2]
[347338262,1735704642082,-500.0,0.00011052,2]
[347338263,1735704642091,-872.02,0.00011052,2]
[347338264,1735704642101,-1579.93,0.00011052,2]
[347338265,1735704642110,-500.0,0.00011052,2]
[347338266,1735704642119,-1031.83568304,0.00011052,2]
[347338267,1735704642131,-4764.15905,0.00011052,2]
[347338268,1735704642142,-2905.38,0.00011052,2]
[347338269,1735704642154,-176.07526696,0.00011052,2]
[347338270,1735704642163,-500.0,0.00011052,2]
[347338271,1735704642172,-843.8246373,0.00011052,2]
[347338274,1735704644271,-913.15698188,0.00011051,2]
[347338275,1735704644282,-537.35,0.00011051,2]
[347338276,1735704644310,-1926.96301812,0.00011051,2]
[347338277,1735704644320,-312.9253627,0.00011052,2]
[347338278,1735704644331,-3544.36667972,0.00011052,2]
[347338279,1735704644343,-105.57332028,0.00011052,2]
[347338280,1735704644352,-500.0,0.00011052,2]
[347338281,1735704644361,-240.42667972,0.00011052,2]
[347338282,1735704644373,-259.57332028,0.00011052,2]
[347338283,1735704644382,-236.00747853,0.00011052,2]
[347338284,1735704644393,-364.22252147,0.00011052,2]
[347338285,1735704644402,-1115.93892501,0.00011052,2]
[347338286,1735704644419,-2187.3,0.00011052,2]
[347338287,1735704644430,-1450.31865778,0.00011052,2]
[347338288,1735704644442,-16083.3999978,0.00011052,2]
[347338289,1735704644455,-2613.24932791,0.00011052,2]
[347338290,1735704644466,-1711.87058023,0.00011052,2]
[347338291,1735704644525,-1098.44735005,0.00011052,2]
[347338292,1735704644536,-744.79128,0.00011052,2]
[347338293,1735704646128,-2677.95388122,0.00011052,2]
[347338294,1735704646138,-7046.04,0.00011052,2]
[347338295,1735704646148,-500.0,0.00011052,2]
[347338296,1735704646157,-500.0,0.00011052,2]
[347338297,1735704646166,-1110.15,0.00011052,2]
[347338298,1735704646177,-563.68,0.00011052,2]
[347338299,1735704646187,-500.0,0.00011052,2]
[347338300,1735704646196,-214.3266774,0.00011052,2]
[347338301,1735704646205,-1178.52,0.00011052,2]
[347338302,1735704646214,-500.0,0.00011052,2]
[347338303,1735704646223,-807.42,0.00011052,2]
[347338304,1735704646233,-1318.88,0.00011052,2]
[347338305,1735704646242,-500.0,0.00011052,2]
[347338306,1735704646252,-3246.39,0.00011052,2]
[347338307,1735704646261,-989.2,0.00011052,2]
[347338308,1735704646270,-500.0,0.00011052,2]
[347338309,1735704646279,-3145.21,0.00011052,2]
[347338310,1735704646288,-3426.07,0.00011052,2]
[347338311,1735704646298,-520.01,0.00011052,2]
[347338312,1735704646307,-1333.15,0.00011052,2]
[347338313,1735704646315,-370.17943874,0.00011052,2]
[347338314,1735704646324,-500.0,0.00011052,2]
[347338315,1735704646334,-802.8,0.00011052,2]
[347338316,1735704646343,-500.0,0.00011052,2]
[347338317,1735704646352,-500.0,0.00011052,2]
[347338318,1735704646361,-500.0,0.00011052,2]
[347338319,1735704646370,-500.0,0.00011052,2]
[347338320,1735704646379,-500.0,0.00011052,2]
[347338321,1735704646388,-807.88,0.00011052,2]
[347338322,1735704646398,-2518.93,0.00011052,2]
[347338323,1735704646407,-3833.3,0.00011052,2]
[347338324,1735704646416,-2267.47,0.00011052,2]
[347338325,1735704646426,-1220.42,0.00011052,2]
[347338326,1735704646436,-4082.53,0.00011052,2]
[347338327,1735704646446,-776.35,0.00011052,2]
[347338328,1735704646455,-18540.29,0.00011052,2]
[347338329,1735704646464,-504.38770886,0.00011052,2]
[347338330,1735704646473,-500.0,0.00011052,2]
[347338331,1735704646482,-1309.43,0.00011052,2]
[347338332,1735704646491,-3036.47,0.00011052,2]
[347338333,1735704646500,-500.0,0.00011052,2]
[347338334,1735704646509,-5501.14,0.00011052,2]
[347338335,1735704646518,-10450.49,0.00011052,2]
[347338336,1735704646527,-500.0,0.00011052,2]
[347338337,1735704646535,-537.39,0.00011052,2]
[347338338,1735704646544,-2015.63,0.00011052,2]
[347338339,1735704646557,-500.0,0.00011052,2]
[347338340,1735704646566,-500.0,0.00011052,2]
[347338341,1735704646575,-500.0,0.00011052,2]
[347338342,1735704646584,-1826.66,0.00011052,2]
[347338343,1735704646594,-500.0,0.00011052,2]
[347338344,1735704646603,-1910.37,0.00011052,2]
[347338345,1735704646612,-3250.94,0.00011052,2]
[347338346,1735704646621,-500.0,0.00011052,2]
[347338347,1735704646634,-500.0,0.00011052,2]
[347338348,1735704646644,-1392.65,0.00011052,2]
[347338349,1735704646653,-500.56,0.00011052,2]
[347338350,1735704646663,-500.0,0.00011052,2]
[347338351,1735704646673,-1508.03,0.00011052,2]
[347338352,1735704646682,-500.0,0.00011052,2]
[347338353,1735704646691,-526.09,0.00011052,2]
[347338354,1735704646700,-500.0,0.00011052,2]
[347338355,1735704646709,-500.0,0.00011052,2]
[347338356,1735704646718,-18449.17,0.00011052,2]
[347338357,1735704646727,-567.67009587,0.00011052,2]
[347338358,1735704646736,-500.0,0.00011052,2]
[347338359,1735704646745,-3965.62,0.00011052,2]
[347338360,1735704646755,-500.0,0.00011052,2]
[347338361,1735704646764,-500.0,0.00011052,2]
[347338362,1735704646773,-500.0,0.00011052,2]
[347338363,1735704646782,-500.0,0.00011052,2]
[347338364,1735704646791,-500.0,0.00011052,2]
[347338365,1735704646800,-500.0,0.00011052,2]
[347338366,1735704646810,-500.0,0.00011052,2]
[347338367,1735704646819,-12743.83,0.00011052,2]
[347338368,1735704646828,-773.64,0.00011052,2]
[347338369,1735704646837,-800.07,0.00011052,2]
[347338370,1735704646846,-4488.47,0.00011052,2]
[347338371,1735704646855,-608.6,0.00011052,2]
[347338372,1735704646865,-2609.25,0.00011052,2]
[347338373,1735704646874,-500.0,0.00011052,2]
[347338374,1735704646883,-966.69,0.00011052,2]
[347338375,1735704646892,-2834.24,0.00011052,2]
[347338376,1735704646901,-500.0,0.00011052,2]
[347338377,1735704646911,-500.0,0.00011052,2]
[347338378,1735704646920,-500.0,0.00011052,2]
[347338379,1735704646929,-500.0,0.00011052,2]
[347338380,1735704646939,-1092.38,0.00011052,2]
[347338381,1735704646948,-915.51,0.00011052,2]
[347338382,1735704646958,-1240.37,0.00011052,2]
[347338383,1735704646967,-500.0,0.00011052,2]
[347338384,1735704646978,-4077.15,0.00011052,2]
[347338385,1735704646988,-1113.75,0.00011052,2]
[347338386,1735704646998,-500.0,0.00011052,2]
[347338387,1735704647009,-3517.78,0.00011052,2]
[347338388,1735704647019,-2636.7,0.00011052,2]
[347338389,1735704647028,-2009.80940154,0.00011052,2]
[347338390,1735704647042,-153.25059846,0.00011052,2]
[347338391,1735704647052,-11066.27,0.00011052,2]
[347338392,1735704647063,-500.0,0.00011052,2]
[347338393,1735704647072,-500.0,0.00011052,2]
[347338394,1735704647081,-8030.84,0.00011052,2]
[347338395,1735704647090,-1456.35,0.00011052,2]
[347338396,1735704647100,-500.0,0.00011052,2]
[347338397,1735704647109,-500.0,0.00011052,2]
[347338398,1735704647119,-500.0,0.00011052,2]
[347338399,1735704647128,-500.0,0.00011052,2]
[347338400,1735704647138,-2022.34,0.00011053,2]
[347338401,1735704647147,-2365.23,0.00011053,2]
[347338402,1735704647156,-500.0,0.00011053,2]
[347338403,1735704647166,-1672.23,0.00011053,2]
[347338404,1735704647176,-500.0,0.00011053,2]
[347338405,1735704647185,-5672.52,0.00011053,2]
[347338406,1735704647194,-2453.41,0.00011053,2]
[347338407,1735704647204,-1523.09,0.00011053,2]
[347338408,1735704647213,-500.0,0.00011053,2]
[347338409,1735704647222,-2504.34,0.00011053,2]
[347338410,1735704647231,-2122.97,0.00011053,2]
[347338411,1735704647240,-500.0,0.00011053,2]
[347338412,1735704647249,-500.0,0.00011053,2]
[347338413,1735704647258,-500.0,0.00011053,2]
[347338414,1735704647267,-500.0,0.00011053,2]
[347338415,1735704647277,-868.36,0.00011053,2]
[347338416,1735704647286,-782.13,0.00011053,2]
[347338417,1735704647296,-874.54,0.00011053,2]
[347338418,1735704647306,-841.01,0.00011053,2]
[347338419,1735704647315,-500.0,0.00011053,2]
[347338420,1735704647324,-801.63,0.00011053,2]
[347338421,1735704647333,-938.09,0.00011053,2]
[347338422,1735704647342,-500.0,0.00011053,2]
[347338423,1735704647352,-721.8,0.00011053,2]
[347338424,1735704647361,-2003.84,0.00011053,2]
[347338425,1735704647370,-500.0,0.00011053,2]
[347338426,1735704647379,-500.0,0.00011053,2]
[347338427,1735704647388,-500.0,0.00011053,2]
[347338428,1735704647398,-1251.03,0.00011053,2]
[347338429,1735704647407,-248.45836799,0.00011053,2]
[347338430,1735704647416,-803.97,0.00011053,2]
[347338431,1735704647425,-2302.46,0.00011053,2]
[347338432,1735704647436,-1275.56,0.00011053,2]
[347338433,1735704647445,-500.0,0.00011053,2]
[347338434,1735704647454,-1155.21,0.00011053,2]
[347338435,1735704647466,-803.63,0.00011053,2]
[347338436,1735704647476,-500.0,0.00011053,2]
[347338437,1735704647485,-500.0,0.00011053,2]
[347338438,1735704647494,-500.0,0.00011053,2]
[347338439,1735704647503,-500.0,0.00011053,2]
[347338440,1735704647512,-500.0,0.00011053,2]
[347338441,1735704647521,-500.0,0.00011053,2]
[347338442,1735704647530,-814.25,0.00011053,2]
[347338443,1735704647539,-1290.33,0.00011053,2]
[347338444,1735704647547,-500.0,0.00011053,2]
[347338445,1735704647559,-500.0,0.00011053,2]
[347338446,1735704647569,-507.86,0.00011053,2]
[347338447,1735704647578,-978.92,0.00011053,2]
[347338448,1735704647587,-575.5,0.00011053,2]
[347338449,1735704647596,-1157.67,0.00011053,2]
[347338450,1735704647605,-500.0,0.00011053,2]
[347338451,1735704647614,-769.92,0.00011053,2]
[347338452,1735704647624,-500.0,0.00011053,2]
[347338453,1735704647633,-500.0,0.00011053,2]
[347338454,1735704647642,-500.0,0.00011053,2]
[347338455,1735704647651,-1874.1,0.00011053,2]
[347338456,1735704647660,-500.0,0.00011053,2]
[347338457,1735704647669,-500.0,0.00011053,2]
[347338458,1735704647679,-500.0,0.00011053,2]
[347338459,1735704647688,-500.0,0.00011053,2]
[347338460,1735704647696,-500.0,0.00011053,2]
[347338461,1735704647706,-500.0,0.00011053,2]
[347338462,1735704647715,-503.77,0.00011053,2]
[347338463,1735704647724,-760.1,0.00011053,2]
[347338464,1735704647734,-599.15,0.00011053,2]
[347338465,1735704647744,-2332.06,0.00011053,2]
[347338466,1735704647753,-3880.5,0.00011053,2]
[347338467,1735704647762,-500.0,0.00011053,2]
[347338468,1735704647771,-716.19,0.00011053,2]
[347338469,1735704647780,-500.0,0.00011053,2]
[347338470,1735704647789,-2989.18,0.00011053,2]
[347338471,1735704647798,-500.0,0.00011053,2]
[347338472,1735704647807,-638.04,0.00011053,2]
[347338473,1735704647816,-701.54,0.00011053,2]
[347338474,1735704647825,-2506.75,0.00011053,2]
[347338475,1735704647834,-1478.39,0.00011053,2]
[347338476,1735704647844,-500.0,0.00011053,2]
[347338477,1735704647854,-6950.82,0.00011053,2]
[347338478,1735704647864,-500.0,0.00011053,2]
[347338479,1735704647875,-500.0,0.00011053,2]
[347338480,1735704647884,-863.93,0.00011053,2]
[347338481,1735704647893,-500.0,0.00011053,2]
[347338482,1735704647903,-500.0,0.00011053,2]
[347338483,1735704647912,-500.0,0.00011053,2]
[347338484,1735704647921,-563.66,0.00011053,2]
[347338485,1735704647930,-500.0,0.00011053,2]
[347338486,1735704647939,-568.21,0.00011053,2]
[347338487,1735704647949,-8635.91,0.00011053,2]
[347338488,1735704647958,-2066.63,0.00011053,2]
[347338489,1735704647968,-1039.76,0.00011053,2]
[347338490,1735704647977,-1382.44,0.00011053,2]
[347338491,1735704647986,-519.32,0.00011053,2]
[347338492,1735704647995,-500.0,0.00011053,2]
[347338493,1735704648005,-529.98,0.00011053,2]
[347338494,1735704648015,-500.0,0.00011053,2]
[347338495,1735704648025,-803.22,0.00011053,2]
[347338496,1735704648035,-5885.26,0.00011053,2]
[347338497,1735704648045,-500.0,0.00011053,2]
[347338498,1735704648055,-678.12,0.00011053,2]
[347338499,1735704648066,-500.0,0.00011053,2]
[347338500,1735704648076,-2457.95,0.00011053,2]
[347338501,1735704648085,-500.0,0.00011053,2]
[347338502,1735704648096,-500.0,0.00011053,2]
[347338503,1735704648105,-1574.78,0.00011053,2]
[347338504,1735704648115,-500.0,0.00011053,2]
[347338505,1735704648124,-257.56521472,0.00011053,2]
[347338506,1735704648134,-1212.81,0.00011053,2]
[347338507,1735704648143,-500.0,0.00011053,2]
[347338508,1735704648152,-832.56,0.00011053,2]
[347338509,1735704648162,-500.0,0.00011053,2]
[347338510,1735704648171,-500.0,0.00011053,2]
[347338511,1735704648181,-2941.96,0.00011053,2]
[347338512,1735704648191,-613.02,0.00011053,2]
[347338513,1735704648200,-500.0,0.00011053,2]
[347338514,1735704648210,-14857.45,0.00011053,2]
[347338515,1735704648220,-500.0,0.00011053,2]
[347338516,1735704648229,-503.82429922,0.00011053,2]
[347338517,1735704648239,-950.27,0.00011053,2]
[347338518,1735704648249,-936.13,0.00011053,2]
[347338519,1735704648258,-3184.96,0.00011053,2]
[347338520,1735704648268,-2736.6,0.00011053,2]
[347338521,1735704648278,-500.0,0.00011053,2]
[347338522,1735704648287,-678.04,0.00011053,2]
[347338523,1735704648297,-8372.6,0.00011053,2]
[347338524,1735704648306,-1038.08,0.00011053,2]
[347338525,1735704648316,-500.0,0.00011053,2]
[347338526,1735704648325,-500.0,0.00011053,2]
[347338527,1735704648335,-2058.99,0.00011053,2]
[347338528,1735704648344,-1342.57,0.00011053,2]
[347338529,1735704648355,-3515.80547749,0.00011053,2]
[347338530,1735704648373,-497.25452251,0.00011053,2]
[347338531,1735704648382,-756.21,0.00011053,2]
[347338532,1735704648392,-306.39296189,0.00011053,2]
[347338533,1735704648404,-540.82703811,0.00011053,2]
[347338534,1735704648414,-908.1,0.00011053,2]
[347338535,1735704648423,-962.32,0.00011053,2]
[347338536,1735704648434,-1978.56,0.00011053,2]
[347338537,1735704648443,-702.3,0.00011053,2]
[347338538,1735704648452,-2086.43990817,0.00011053,2]
[347338539,1735704648474,-8190.0,0.00011053,2]
[347338540,1735704648541,-1532.47955521,0.00011053,2]
[347338541,1735704648626,-500.0,0.00011052,2]
[347338542,1735704648638,-14447.62053662,0.00011053,2]
[347338543,1735704648648,-1708.15,0.00011053,2]
[347338544,1735704648657,-1213.05,0.00011053,2]
[347338545,1735704648667,-539.45,0.00011053,2]
[347338546,1735704648676,-500.0,0.00011053,2]
[347338547,1735704648685,-503.0393853,0.00011053,2]
[347338548,1735704648694,-500.0,0.00011053,2]
[347338549,1735704648704,-500.0,0.00011053,2]
[347338550,1735704648713,-4352.26,0.00011053,2]
[347338551,1735704648723,-1607.19,0.00011053,2]
[347338552,1735704648732,-2102.98,0.00011053,2]
[347338553,1735704648741,-552.19,0.00011053,2]
[347338554,1735704648751,-2387.14,0.00011053,2]
[347338555,1735704648761,-501.01475619,0.00011053,2]
[347338556,1735704648771,-500.0,0.00011053,2]
[347338557,1735704648780,-500.0,0.00011053,2]
[347338558,1735704648790,-2391.81,0.00011053,2]
[347338559,1735704648799,-1685.27,0.00011053,2]
[347338560,1735704648809,-2285.89,0.00011053,2]
[347338561,1735704648820,-500.0,0.00011053,2]
[347338562,1735704648829,-1515.81,0.00011053,2]
[347338563,1735704648839,-500.0,0.00011053,2]
[347338564,1735704648849,-500.0,0.00011053,2]
[347338565,1735704648859,-2833.17,0.00011053,2]
[347338566,1735704648868,-532.82,0.00011053,2]
[347338567,1735704648878,-1612.0,0.00011053,2]
[347338568,1735704648888,-2312.22,0.00011053,2]
[347338569,1735704648898,-500.0,0.00011053,2]
[347338570,1735704648908,-500.0,0.00011053,2]
[347338571,1735704648918,-500.0,0.00011053,2]
[347338572,1735704648927,-1421.8,0.00011053,2]
[347338573,1735704648937,-2988.57,0.00011053,2]
[347338574,1735704648947,-4324.22,0.00011053,2]
[347338575,1735704648957,-2231.03,0.00011053,2]
[347338576,1735704648966,-903.04,0.00011053,2]
[347338577,1735704648975,-1238.45,0.00011053,2]
[347338578,1735704648985,-10885.4,0.00011053,2]
[347338579,1735704648995,-2524.21,0.00011053,2]
[347338580,1735704649004,-500.0,0.00011053,2]
[347338581,1735704649014,-716.29,0.00011053,2]
[347338582,1735704649023,-572.43,0.00011053,2]
[347338583,1735704649033,-500.0,0.00011053,2]
[347338584,1735704649042,-2974.59,0.00011053,2]
[347338585,1735704649052,-524.29,0.00011053,2]
[347338586,1735704649062,-500.0,0.00011053,2]
[347338587,1735704649071,-500.0,0.00011053,2]
[347338588,1735704649080,-2688.54,0.00011053,2]
[347338589,1735704649090,-1086.11,0.00011053,2]
[347338590,1735704649100,-4644.58,0.00011053,2]
[347338591,1735704649110,-1277.6,0.00011053,2]
[347338592,1735704649120,-500.0,0.00011053,2]
[347338593,1735704649129,-3926.15,0.00011053,2]
[347338594,1735704649139,-500.0,0.00011053,2]
[347338595,1735704649148,-636.21,0.00011053,2]